Cogmind - Beta 17.1 @@@ ROGUE MODE // 2026.09.09 @ 13:49:31 Player: Somberlain Result: Destroyed by B-75 Beast with Magnetic Acceleration Cannon Performance ------------- Evolutions (4) 2000 Regions Visited (11) 2200 Robots Destroyed (137) 685 Value Destroyed (4192) 4192 Prototype IDs (12) 240 Alien Tech Used (0) 0 Bonus (1294) 1294 TOTAL SCORE: 10611 Bonus ------- High Alert Combat Kills 66 Follower Combat Kills 128 Entered DSFs 500 Met Imprinter 300 Was Imprinted 300 Cogmind --------- Core Integrity 0/850 Matter 143/300 Energy 149/150 System Corruption 0% Temperature Warm (152) Movement Core (250) Ox4 Location -5/Proximity Caves Parts ------- > --- POWER (1) -------- Light Angular Momentum Engine > --- PROPULSION (3) --- (None) > --- UTILITY (9) ------ 0b10 Decoder Chip [Generic] 0b10 Decoder Chip [Generic] 0b10 Decoder Chip [Scout] 0b10 Decoder Chip [Skirmisher] Experimental Target Analyzer Improved Reaction Control System System Shield Makeshift System Shield Advanced System Shield > --- WEAPON (2) ------- Flail > --- INVENTORY (5) ---- Faulty Spectral Analyzer Experimental Terrain Scan Processor Graphene Brace Beamcaster Remote Datajack Peak State ------------ > --- POWER ------------ Improved Deuterium Engine > --- PROPULSION ------- Improved Titanium Leg Flexi-carbon Leg Armored Leg > --- UTILITY ---------- Advanced Heat Sink Large Storage Unit Active Sensor Suite Improved Medium Armor Plating Graphene Brace System Shield System Shield > --- WEAPON ----------- Lightning Gun Tesla Rifle > --- INVENTORY -------- Improved Deuterium Engine Improved Cryofiber Web Improved Trap Scanner Authchip [Device] Authchip [Device] Authchip [Armor] Authchip [Weapon] High-powered Shotgun High-powered Shotgun Gauss Rifle Gauss Rifle Remote Datajack Flail [Rating: 83] Favorites ----------- Power Light Nuclear Core Engine Light Angular Momentum Engine Power Core Light Nuclear Core Propulsion Improved Aluminum Leg Leg Improved Aluminum Leg Wheel Wheel Hover Unit Backup Propulsion III Utility System Shield Device Active Sensor Suite Storage Large Storage Unit Processor Advanced Targeting Computer Hackware System Shield Protection Improved Light Armor Plating Weapon High-powered Shotgun Energy Gun Shock Rifle Energy Cannon Ion Cannon Ballistic Gun High-powered Shotgun Ballistic Cannon Gauss Cannon Launcher Missile Launcher Special Weapon Remote Datajack Impact Weapon Flail Piercing Weapon CR-A16's Pointy Stick Build | -11 -10 -9 -9 -8 -7 -7 -6 -6 -6 -6 -5 ------- Run | Yrd Mat Mat Min Mat Fac DSF Fac Low Low Zio Pro Slots Evolved 8 | . . 2 . 2 2 . 2 . . . . Power . | . . . . . . . . . . . . Propulsion 1 | . . . . 1 . . . . . . . Utility 7 | . . 2 . 1 2 . 2 . . . . Weapon . | . . . . . . . . . . . . Parts Attached 150 | 6 16 25 9 30 3 6 23 3 12 17 . Power 23 | 1 3 3 . 6 . 3 3 . 3 1 . Engine 15 | 1 3 2 . 3 . . 2 . 3 1 . Core 8 | . . 1 . 3 . 3 1 . . . . Reactor . | . . . . . . . . . . . . Propulsion 29 | 2 4 5 2 5 . 1 5 . 2 3 . Treads . | . . . . . . . . . . . . Leg 26 | 2 4 5 2 5 . 1 5 . 2 . . Wheel 1 | . . . . . . . . . . 1 . Hover 2 | . . . . . . . . . . 2 . Flight . | . . . . . . . . . . . . Utility 55 | 1 2 8 1 14 1 1 9 2 5 11 . Device 21 | . . 2 . 7 1 1 5 1 2 2 . Storage 5 | 1 1 2 . . . . . 1 . . . Processor 14 | . 1 2 . 3 . . . . . 8 . Hackware 9 | . . . . 2 . . 3 . 3 1 . Protection 6 | . . 2 1 2 . . 1 . . . . Artifact . | . . . . . . . . . . . . Weapon 43 | 2 7 9 6 5 2 1 6 1 2 2 . Energy Gun 18 | . 3 5 2 2 . . 4 . 2 . . Energy Cannon 6 | . . 3 1 . 2 . . . . . . Ballistic Gun 8 | 2 . 1 1 2 . . 2 . . . . Ballistic Cannon 1 | . . . . . . 1 . . . . . Launcher 2 | . . . 2 . . . . . . . . Special Weapon 5 | . 4 . . . . . . . . 1 . Impact Weapon 2 | . . . . 1 . . . 1 . . . Slashing Weapon . | . . . . . . . . . . . . Piercing Weapon 1 | . . . . . . . . . . 1 . Special Melee Weapon . | . . . . . . . . . . . . Unidentified Prototypes 10 | . . 3 . 2 . 1 1 . . 3 . Corrupted Parts 2 | . . . . . . . 1 . 1 . . System Corruption 16 | . . . . . . . 8 . 8 . . Parts Lost 62 | . 7 3 8 10 . 4 8 2 17 . 3 Power 9 | . 1 1 1 2 . . 1 . 3 . . Propulsion 16 | . 2 . 2 2 . 1 1 . 5 . 3 Utility 18 | . . . 3 2 . 2 4 1 6 . . Weapon 19 | . 4 2 2 4 . 1 2 1 3 . . Highest Loss Streak 10 | . 5 1 8 7 . 4 5 2 10 . 3 To Critical Strikes . | . . . . . . . . . . . . Average Backups 9 | . 3 12 14 12 14 14 12 4 4 4 5 Power . | . . 1 1 . 1 . . . . . . Propulsion . | . 1 3 2 . 2 1 . . . . . Utility 2 | . 1 2 2 4 5 6 6 1 1 2 3 Weapon 3 | . . 5 8 5 5 4 4 2 1 1 . Tool/Special . | . . . . . . . . . . . . Unused Backups 17 | . . 8 . 1 . 1 5 . . . 2 Power 1 | . . 1 . . . . . . . . . Propulsion 3 | . . 2 . . . . 1 . . . . Utility 8 | . . 2 . . . 1 3 . . . 2 Weapon 4 | . . 3 . 1 . . . . . . . Tool/Special 1 | . . . . . . . 1 . . . . Average Slot Usage (%) 90 | . 91 98 87 97 93 84 83 83 79 81 98 Engine 4 | . 12 8 . . . . 4 . 3 2 6 Core 3 | . . 2 8 8 7 6 1 6 2 . . Leg 19 | . 27 22 20 26 23 21 19 20 16 . . Hover 2 | . . . . . . . . . . 15 18 Device 12 | . . 8 7 11 8 8 18 32 20 4 . Storage 6 | . 14 11 11 9 7 7 4 . 4 . . Processor 10 | . 11 13 8 13 15 8 . . . 24 39 Hackware 10 | . . . . 5 15 15 20 13 20 22 20 Protection 3 | . . 9 8 4 . . . . . . . Energy Gun 5 | . 5 8 16 3 . . 6 2 7 3 5 Energy Cannon 3 | . . 13 2 5 2 4 . . . . . Ballistic Gun 4 | . 12 . 1 8 12 9 5 6 1 . . Special Weapon 1 | . 6 . . . . . . . . 4 5 Peak Build Rating 83 | 6 7 21 23 33 37 56 83 79 80 73 73 Average Rating 41 | 4 6 19 18 29 34 47 71 77 65 55 72 On Entrance 35 | . 6 7 21 12 31 37 56 75 75 28 73 Avg Prop Armor Cover (%) 7 | . . . . . . . . 6 6 11 . Naked Turns . | . . . . . . . . . . . . Heaviest Build 52 | 11 19 47 39 46 41 41 52 31 34 17 17 Greatest Support 56 | 20 20 26 26 39 35 35 56 35 35 24 24 Greatest Overweight (x) 9 | . 1 1 9 2 1 1 1 . 4 2 1 Average Overweight (x) . | . . . 1 . . . . . . . . Largest Inventory Capacity 15 | 8 10 15 15 15 15 15 15 10 10 5 5 Average Capacity 11 | 7 9 13 15 15 15 15 12 5 8 5 5 Most Carried 15 | . 8 15 15 15 15 15 15 5 10 5 5 Average Carried 9 | . 3 12 14 12 14 14 12 4 4 4 4 Final Capacity 15 | 8 10 15 15 15 15 15 5 10 5 5 5 Final Carried 15 | . 7 15 11 15 14 15 5 3 2 5 5 Class Distribution -------------------- 49% | Mutant 15% | Hacker-Skirmisher 13% | Hacker-Mutant 7% | Derelict-Mutant 6% | Scavenger-Skirmisher 5% | Scavenger-Mutant Dominant Class ---------------- Mutant | -10/Materials Mutant | -9/Materials Mutant | -9/Mines Mutant | -8/Materials Hacker-Mutant | -7/Factory Hacker-Skirmisher | -7/DSF Hacker-Skirmisher | -6/Factory Scavenger-Mutant | -6/Lower Caves Scavenger-Skirmisher | -6/Lower Caves Derelict-Mutant | -6/Zion Derelict-Mutant | -5/Proximity Caves Resources | -11 -10 -9 -9 -8 -7 -7 -6 -6 -6 -6 -5 ----------- Run | Yrd Mat Mat Min Mat Fac DSF Fac Low Low Zio Pro Matter Collected 3159 | 194 364 473 27 907 . 104 600 279 148 63 . Remotely . | . . . . . . . . . . . . Salvage Created 5156 | . 393 1886 97 1236 . 226 744 208 366 . . Parts 301 | . 20 120 7 77 . 20 40 6 11 . . Haulers Intercepted 8 | . . 6 . 2 . . . . . . . Recyclers Shooed 1 | . . 1 . . . . . . . . . Parts Field Recycled . | . . . . . . . . . . . . Retrieved Matter . | . . . . . . . . . . . . Parts Self-Destructed 11 | . . . . . . . . 6 1 . 4 Prevented 2 | . . . . . . . . . . . 2 Parts Restored . | . . . . . . . . . . . . Kills | -11 -10 -9 -9 -8 -7 -7 -6 -6 -6 -6 -5 ------- Run | Yrd Mat Mat Min Mat Fac DSF Fac Low Low Zio Pro Combat Hostiles Destroyed 112 | . 12 37 6 27 . 7 12 4 7 . . Guns 68 | . 8 20 6 16 . 2 9 4 3 . . Cannons 22 | . 4 9 . 4 . 5 . . . . . AOE 17 | . . 7 . 7 . . . . 3 . . Classes Destroyed 16 | . 3 6 1 1 . 2 3 . . . . Worker 3 | . . 3 . . . . . . . . . Builder 2 | . . 2 . . . . . . . . . Hauler 8 | . . 6 . 2 . . . . . . . Recycler 2 | . . 1 . 1 . . . . . . . Watcher 10 | . 3 4 . 3 . . . . . . . Swarmer 31 | . 3 13 4 6 . . . 4 1 . . Cutter 3 | . . . . . . 3 . . . . . Grunt 44 | . 9 13 . 13 . 2 6 . 1 . . Brawler 3 | . . 2 . 1 . . . . . . . Duelist 1 | . . . . . . . 1 . . . . Sentry 18 | . . 9 . 6 . . 2 . 1 . . Demolisher 2 | . . . 2 . . . . . . . . Specialist 1 | . . . . . . 1 . . . . . Hunter 1 | . . . . . . . 1 . . . . Programmer 2 | . . . . . . . 2 . . . . Heavy 2 | . . . . 1 . 1 . . . . . Packrat 2 | . . . . . . . . 2 . . . Thug 4 | . . . . . . . . . 4 . . Best Kill Streak 8 | . 3 8 3 3 . 2 5 4 4 . . Combat Bots Only 7 | . 3 7 3 3 . 2 5 4 4 . . Max Kills in Single Turn 3 | . 1 3 1 2 . 1 1 1 2 . . Gunslinging . | . . . . . . . . . . . . Exploded 3 | . . 3 . 2 . . . . 2 . . Melee . | . . . . . . . . . . . . Uniques/NPCs Destroyed . | . . . . . . . . . . . . Combat | -11 -10 -9 -9 -8 -7 -7 -6 -6 -6 -6 -5 -------- Run | Yrd Mat Mat Min Mat Fac DSF Fac Low Low Zio Pro Hostile Shots Fired 815 | . 97 113 31 133 . 36 174 26 189 . 16 Missed 256 | . 34 28 1 45 . 10 59 8 63 . 8 Hits 559 | . 63 85 30 88 . 26 115 18 126 . 8 Melee 8 | . . . . . . 8 . . . . . Projectile 551 | . 63 85 30 88 . 18 115 18 126 . 8 AOE 26 | . . . 23 . . 3 . . . . . Critical Strikes 16 | . . . . 4 . 6 1 . 4 . 1 Actively Blocked 5 | . . . . . . . 1 . 4 . . Damage Taken 8845 | . 752 942 1027 1684 . 788 1676 265 1541 . 170 Core 1815 | . 179 60 216 372 . 136 136 12 668 . 36 Absorbed by Shields 9 | . . . . . . 9 . . . . . Regen/Repaired (Parts) 288 | . . 219 . 52 . . . . . 17 . Core Remaining (%) 54 | 100 28 . 31 32 . 80 . . . . . Volleys Fired 393 | . 67 83 20 85 . 25 54 20 34 5 . Largest 2 | . 2 2 2 2 . 2 2 2 2 1 . Hottest 200 | . 200 120 110 123 . 138 130 50 125 5 . Shots Fired 691 | . 120 163 37 155 . 39 100 25 47 5 . Gun 500 | . 102 101 26 86 . 13 100 25 47 . . Cannon 153 | . . 62 7 58 . 26 . . . . . Launcher 15 | . . . 4 11 . . . . . . . Special 23 | . 18 . . . . . . . . 5 . Kinetic 211 | . 93 . 4 44 . 20 34 15 1 . . Thermal 214 | . 26 78 7 63 . 16 . . 24 . . Explosive 15 | . . . 4 11 . . . . . . . Electromagnetic 246 | . 1 85 22 37 . 3 66 10 22 . . Robot Hit Streak 16 | . 13 16 4 9 . 12 6 4 12 2 . Robot Miss Streak 9 | . 4 4 3 4 . 9 4 8 3 2 . Penetration Max . | . . . . . . . . . . . . Secondary Targets 10 | . 2 5 . 1 . . 2 . . . . Max Gunslinging Chain 1 | . 1 1 . 1 . . 1 . . . . Shots Hit Robots 439 | . 68 118 18 99 . 31 55 14 34 2 . Core Hits 224 | . 25 67 17 55 . 13 25 11 11 . . Critical Kills 1 | . . . . 1 . . . . . . . Critical Parts Destroyed 1 | . . . . . . . . . 1 . . Critical Strikes 8 | . . 1 . 1 . 2 . . 4 . . Burn 3 | . . 1 . . . . . . 2 . . Destroy 1 | . . . . 1 . . . . . . . Blast 2 | . . . . . . 2 . . . . . Corrupt 1 | . . . . . . . . . 1 . . Smash 1 | . . . . . . . . . 1 . . Melee Attacks 16 | . . . . 5 . . . . 11 . . Impact 16 | . . . . 5 . . . . 11 . . Slashing . | . . . . . . . . . . . . Piercing . | . . . . . . . . . . . . Sneak Attacks 1 | . . . . . . . . . 1 . . Combat Hostiles 1 | . . . . . . . . . 1 . . Follow-up Attacks . | . . . . . . . . . . . . Damage Inflicted 10344 | . 835 2842 354 2816 . 731 1305 363 1098 . . Guns 5406 | . 715 1220 192 1028 . 137 1228 297 589 . . Cannons 2711 | . . 1119 69 929 . 594 . . . . . Explosions 1916 | . . 503 93 856 . . 77 66 321 . . Melee 184 | . . . . . . . . . 184 . . Ramming 7 | . . . . 3 . . . . 4 . . Kinetic 2248 | . 645 . 34 642 . 336 429 142 20 . . Thermal 4216 | . 170 1777 69 981 . 331 77 66 745 . . Explosive 949 | . . . 93 856 . . . . . . . Electromagnetic 2740 | . 20 1065 158 334 . 64 799 155 145 . . Impact 184 | . . . . . . . . . 184 . . Slashing . | . . . . . . . . . . . . Piercing . | . . . . . . . . . . . . Highest Corruption 17 | . . . . . . . 9 9 17 17 . Average Corruption 10 | . . . . . . . 8 9 11 17 . Corruption Purged . | . . . . . . . . . . . . Corruption Blocked . | . . . . . . . . . . . . Effects 115 | . . . . . . . 17 43 48 7 . Message Errors 38 | . . . . . . . 4 15 17 2 . Matter Fused 23 | . . . . . . . 4 13 6 . . Heat Flow Errors 8 | . . . . . . . 2 1 4 1 . Energy Discharges 13 | . . . . . . . 1 5 5 2 . Parts Fused 1 | . . . . . . . . 1 . . . Data Loss (minor) 15 | . . . . . . . 1 5 7 2 . Data Loss (major) 4 | . . . . . . . 2 2 . . . Misfires 8 | . . . . . . . 2 . 6 . . Alerts 3 | . . . . . . . 1 . 2 . . Misdirections 1 | . . . . . . . . . 1 . . Weapon Failures 1 | . . . . . . . . 1 . . . Overload Shots . | . . . . . . . . . . . . Overflow Damage 150 | . . 15 . 5 . . . 26 104 . . Projectiles 15 | . . 15 . . . . . . . . . Explosions 93 | . . . . 5 . . . 26 62 . . Melee 42 | . . . . . . . . . 42 . . Knockbacks 1 | . . . . . . 1 . . . . . Impact . | . . . . . . . . . . . . Kinetic 1 | . . . . . . 1 . . . . . Secondary . | . . . . . . . . . . . . Self-Inflicted Damage 64 | . . 14 32 . . . . . 18 . . Shots 3 | . . 1 1 . . . . . 1 . . Rammed 2 | . . . . . . . . . 2 . . Targets Rammed 5 | . . . . 1 . . . . 4 . . Kicked 3 | . . . . 1 . . . . 2 . . Crushed . | . . . . . . . . . . . . Highest Temperature 341 | . 130 150 209 277 . 4 195 233 341 247 316 Average Temperature 56 | . 24 43 90 45 . 4 56 129 112 125 227 Received Heat Transfer 2775 | . 387 246 . 558 . 45 606 . 567 . 366 Siege Activations . | . . . . . . . . . . . . Martial Activations . | . . . . . . . . . . . . Shielding Activations . | . . . . . . . . . . . . Robots Disrupted 1 | . . 1 . . . . . . . . . Combat Hostiles 1 | . . 1 . . . . . . . . . Robots Corrupted 4 | . . 1 . . . . 3 . . . . Combat Hostiles 4 | . . 1 . . . . 3 . . . . Parts Fried 12 | . . 4 2 . . . 6 . . . . Impact Corruptions 1 | . . . . . . . . . 1 . . Robots Melted 2 | . . 1 . . . . . . 1 . . Combat Hostiles 1 | . . . . . . . . . 1 . . Parts Melted 6 | . . 3 . 1 . . . . 2 . . Heat Transferred 6739 | . 398 2907 111 1554 . 481 50 50 1188 . . Parts Sabotaged . | . . . . . . . . . . . . Parts Stolen . | . . . . . . . . . . . . Parts Stripped . | . . . . . . . . . . . . Power Chain Reactions 12 | . . 7 1 . . . 1 1 2 . . Alert | -11 -10 -9 -9 -8 -7 -7 -6 -6 -6 -6 -5 ------- Run | Yrd Mat Mat Min Mat Fac DSF Fac Low Low Zio Pro Maximum Alert Level 2 | . . 2 . 1 . 1 1 . . . . Low Security (%) 69 | 100 100 17 100 89 100 49 86 . . . . Level 1 23 | . . 56 . 10 . 50 13 . . . . Level 2 7 | . . 25 . . . . . . . . . Level 3 . | . . . . . . . . . . . . Level 4 . | . . . . . . . . . . . . Level 5 . | . . . . . . . . . . . . High Security . | . . . . . . . . . . . . Max Security . | . . . . . . . . . . . . Peak Influence 505 | . 124 505 175 305 132 213 253 . . . . Initial 133 | . . . 133 13 132 78 111 . . . . Average 131 | . 35 280 116 78 124 166 65 . . . . Influence Increases 3693 | . 385 1139 172 892 . 175 531 105 120 . 174 Destroy 0b10 Robot/C 2220 | . 240 740 120 540 . 140 240 80 60 . 60 Destroy 0b10 Robot/NC 125 | . 15 80 . 30 . . . . . . . Destroy Leader 506 | . 46 190 20 150 . 20 70 10 . . . Allied During Kill 24 | . . . . . . . . . . . 24 Successful Hack 55 | . 19 34 . 2 . . . . . . . Disable Machine 30 | . . 15 . 15 . . . . . . . Destroy Structure 128 | . 5 35 17 65 . . 6 . . . . Partial Spotted 30 | . . 15 . 15 . . . . . . . Lose Combat Pursuer 375 | . 60 30 15 75 . 15 15 15 60 . 90 Active Sensor Use 200 | . . . . . . . 200 . . . . Influence Decreases 3649 | . 385 795 481 635 180 74 726 67 161 15 130 Entered New Map 563 | . . . 211 22 160 34 102 8 11 15 . Time Decay 2228 | . 315 615 190 562 20 . 321 49 116 . 40 Lost Part 415 | . 70 30 80 51 . 40 70 10 34 . 30 Lost Ally 60 | . . . . . . . . . . . 60 Purge Threat 383 | . . 150 . . . . 233 . . . . Squads Dispatched 15 | . 1 2 . 4 . 2 5 . . . 1 Investigation 5 | . . 2 . 1 . . 2 . . . . Extermination 2 | . . . . . . . 2 . . . . Reinforcement 7 | . 1 . . 3 . 2 1 . . . . Assault 1 | . . . . . . . . . . . 1 Garrison . | . . . . . . . . . . . . Intercept . | . . . . . . . . . . . . Searches Triggered . | . . . . . . . . . . . . Construction Impeded 1 | . . . . 1 . . . . . . . Haulers Reinforced . | . . . . . . . . . . . . Active Scanning Responses 2 | . . . . . . . 2 . . . . Cargo Convoy Interrupts 1 | . . . . . . . 1 . . . . Stealth | -11 -10 -9 -9 -8 -7 -7 -6 -6 -6 -6 -5 --------- Run | Yrd Mat Mat Min Mat Fac DSF Fac Low Low Zio Pro Distress Signals 7 | . 2 4 . . . . 1 . . . . Communications Jammed . | . . . . . . . . . . . . Distress Signals . | . . . . . . . . . . . . Times Spotted 166 | . 24 48 7 39 . 9 15 5 13 . 6 Peak Tracking Total 7 | . 6 7 4 3 . 2 4 4 4 . 7 Tactical Retreats 14 | . 2 2 1 2 . 1 1 1 2 . 2 Traps | -11 -10 -9 -9 -8 -7 -7 -6 -6 -6 -6 -5 ------- Run | Yrd Mat Mat Min Mat Fac DSF Fac Low Low Zio Pro Traps Triggered 8 | . 1 2 . 1 . 4 . . . . . Indirectly . | . . . . . . . . . . . . Trap Hack Attempts . | . . . . . . . . . . . . Triggered . | . . . . . . . . . . . . Disarmed . | . . . . . . . . . . . . Reprogrammed . | . . . . . . . . . . . . Reused . | . . . . . . . . . . . . Traps Extracted . | . . . . . . . . . . . . Installed . | . . . . . . . . . . . . Triggered . | . . . . . . . . . . . . Machines | -11 -10 -9 -9 -8 -7 -7 -6 -6 -6 -6 -5 ---------- Run | Yrd Mat Mat Min Mat Fac DSF Fac Low Low Zio Pro Machines Disabled 3 | . 1 1 . 1 . . . . . . . Max in Single Turn 1 | . 1 1 . 1 . . . . . . . Machines Repaired . | . . . . . . . . . . . . Machines Dismantled . | . . . . . . . . . . . . Machines Sabotaged . | . . . . . . . . . . . . Overloaded Fab Kills . | . . . . . . . . . . . . Hacking | -11 -10 -9 -9 -8 -7 -7 -6 -6 -6 -6 -5 --------- Run | Yrd Mat Mat Min Mat Fac DSF Fac Low Low Zio Pro Machines Accessed 36 | . 6 15 . 10 1 . 3 . . 1 . Terminals 24 | . 6 9 . 7 1 . 1 . . . . Fabricators 1 | . . . . . . . 1 . . . . Repair Stations 4 | . . 2 . 1 . . 1 . . . . Recycling Units 3 | . . 2 . 1 . . . . . . . Scanalyzers 3 | . . 2 . 1 . . . . . . . Garrison Access . | . . . . . . . . . . . . Total Hacks 75 | . 12 31 . 21 1 . 6 . . 4 . Successful 36 | . 3 17 . 7 1 . 4 . . 4 . Failed 37 | . 8 14 . 13 . . 2 . . . . Catastrophic 13 | . 5 4 . 4 . . . . . . . Database Lockouts 2 | . 1 . . 1 . . . . . . . Manual 40 | . 12 12 . 14 . . 1 . . 1 . Terminals 47 | . 12 19 . 12 1 . 3 . . . . Fabricators 2 | . . . . . . . 2 . . . . Repair Stations 9 | . . 6 . 2 . . 1 . . . . Recycling Units 6 | . . 2 . 4 . . . . . . . Scanalyzers 7 | . . 4 . 3 . . . . . . . Garrison Access . | . . . . . . . . . . . . Terminal Hacks 19 | . 3 7 . 2 1 . 2 . . 4 . Part Schematic 4 | . . . . . . . . . . 4 . Robot Analysis 4 | . 1 2 . 1 . . . . . . . Prototype ID Bank 1 | . . 1 . . . . . . . . . Open DSF 1 | . . . . . 1 . . . . . . Terminal Index 1 | . 1 . . . . . . . . . . Unreport Threat 3 | . . 1 . . . . 2 . . . . Security Status 1 | . . 1 . . . . . . . . . Patrol Status 1 | . . 1 . . . . . . . . . Recall Reinforcements 1 | . . . . 1 . . . . . . . Registered Components 2 | . 1 1 . . . . . . . . . Fabricator Hacks 2 | . . . . . . . 2 . . . . Network Status 1 | . . . . . . . 1 . . . . Build 1 | . . . . . . . 1 . . . . Repair Station Hacks 8 | . . 6 . 2 . . . . . . . Scan Component 4 | . . 3 . 1 . . . . . . . Repair 4 | . . 3 . 1 . . . . . . . Recycling Unit Hacks 3 | . . 2 . 1 . . . . . . . Retrieve Components 3 | . . 2 . 1 . . . . . . . Scanalyzer 4 | . . 2 . 2 . . . . . . . Insert Component 1 | . . . . 1 . . . . . . . Analyze 1 | . . . . 1 . . . . . . . Retrieve Study 2 | . . 2 . . . . . . . . . Garrison Access Hacks . | . . . . . . . . . . . . Unauthorized Hacks . | . . . . . . . . . . . . Terminals . | . . . . . . . . . . . . Fabricators . | . . . . . . . . . . . . Repair Stations . | . . . . . . . . . . . . Recycling Units . | . . . . . . . . . . . . Scanalyzers . | . . . . . . . . . . . . Garrison Access . | . . . . . . . . . . . . Data Cores Recovered . | . . . . . . . . . . . . Used . | . . . . . . . . . . . . Hacking Detections 30 | . 6 14 . 8 . . 2 . . . . Full Trace Events 1 | . 1 . . . . . . . . . . Feedback Events . | . . . . . . . . . . . . Feedback Blocked . | . . . . . . . . . . . . Robot Schematics Acquired 3 | . . . . . . . . . . 3 . Robots Built . | . . . . . . . . . . . . Authchips . | . . . . . . . . . . . . Time . | . . . . . . . . . . . . Total Robot Build Rating . | . . . . . . . . . . . . Part Schematics Acquired 20 | . . . . 1 . . . . . 19 . Parts Built 2 | . . . . . . . 2 . . . . Authchips . | . . . . . . . . . . . . Time 106 | . . . . . . . 106 . . . . Total Part Build Rating 12 | . . . . . . . 12 . . . . Part Studies Acquired 2 | . . 2 . . . . . . . . . Parts Repaired 4 | . . 3 . 1 . . . . . . . Time 146 | . . 108 . 38 . . . . . . . Parts Recycled . | . . . . . . . . . . . . Recycled Matter . | . . . . . . . . . . . . Retrieved Matter . | . . . . . . . . . . . . Retrieved Components 22 | . . 20 . 2 . . . . . . . Parts Scanalyzed 1 | . . . . 1 . . . . . . . Part Schematics Acquired 1 | . . . . 1 . . . . . . . Parts Damaged . | . . . . . . . . . . . . Bothacking | -11 -10 -9 -9 -8 -7 -7 -6 -6 -6 -6 -5 ------------ Run | Yrd Mat Mat Min Mat Fac DSF Fac Low Low Zio Pro Used RIF Installer . | . . . . . . . . . . . . Robots Hacked 2 | . . . . . . . . . . 2 . Non-combat 2 | . . . . . . . . . . 2 . Combat . | . . . . . . . . . . . . Robot Hacks Applied 2 | . . . . . . . . . . 2 . parse_system 2 | . . . . . . . . . . 2 . Relay Couplers Released . | . . . . . . . . . . . . Fabnet Peak Effective % . | . . . . . . . . . . . . Robots Rewired . | . . . . . . . . . . . . Allies Hacked . | . . . . . . . . . . . . Hacks Repelled . | . . . . . . . . . . . . Allies | -11 -10 -9 -9 -8 -7 -7 -6 -6 -6 -6 -5 -------- Run | Yrd Mat Mat Min Mat Fac DSF Fac Low Low Zio Pro Total Allies 4 | . . . . . . . . . . 4 . Largest Group 4 | . . . . . . . . . . 4 4 Highest-Rated Group 158 | . . . . . . . . . . 158 158 Highest-Rated Ally 40 | . . . . . . . . . . 40 40 Total Orders . | . . . . . . . . . . . . Ally Attacks 17 | . . . . . . . . . . . 17 Total Damage 395 | . . . . . . . . . . . 395 Kills 3 | . . . . . . . . . . . 3 Allies Corrupted 2 | . . . . . . . . . . . 2 Allies Melted . | . . . . . . . . . . . . Intel | -11 -10 -9 -9 -8 -7 -7 -6 -6 -6 -6 -5 ------- Run | Yrd Mat Mat Min Mat Fac DSF Fac Low Low Zio Pro Active Infowar (turns) 7312 | . . . . 2143 46 274 1398 1168 1116 975 192 Sensors 2066 | . . . . 1597 46 59 . . 364 . . A.S.S. 3533 | . . . . . . 215 1398 1168 752 . . Terrain 546 | . . . . 546 . . . . . . . Traps 2278 | . . . . . . . 1183 1095 . . . Decoding 1167 | . . . . . . . . . . 975 192 Robot Analysis Total 4 | . 1 2 . 1 . . . . . . . Derelict Logs Recovered 8 | . . . 1 . . . . 3 2 1 1 Drone Launches . | . . . . . . . . . . . . Drone Recoveries . | . . . . . . . . . . . . Exploration | -11 -10 -9 -9 -8 -7 -7 -6 -6 -6 -6 -5 ------------- Run | Yrd Mat Mat Min Mat Fac DSF Fac Low Low Zio Pro Turns Passed 13013 | 66 1163 2464 383 2857 46 334 1548 1168 1299 1493 192 Spaces Moved 7721 | 49 675 1068 169 1472 33 143 730 879 850 1420 233 Core 32 | 2 . . 2 . . . . . 24 4 . Treads . | . . . . . . . . . . . . Legs 6040 | 47 675 1068 167 1472 33 143 730 879 826 . . Wheels 313 | . . . . . . . . . . 313 . Hover 1336 | . . . . . . . . . . 1103 233 Flight . | . . . . . . . . . . . . Fastest Speed 50 | 50 120 120 175 105 120 120 110 105 100 72 72 Average Speed 123 | 117 120 182 178 132 124 135 155 105 109 74 73 Slowest Speed 500 | 120 190 190 500 245 190 190 195 105 250 150 156 Overloaded Moves . | . . . . . . . . . . . . Propulsion Burnouts . | . . . . . . . . . . . . Robots Hopped . | . . . . . . . . . . . . Potential Cave-ins . | . . . . . . . . . . . . Cave-ins Triggered . | . . . . . . . . . . . . Exploration Rate (%) 51 | 3 77 80 37 66 1 79 12 74 71 89 29 Regions Visited 11 Branch Regions 5 Pre-discovered Areas 3 | . . . . . . . . . . 3 . Known Exits Taken 6 | . . 1 1 1 1 . 1 1 . . . Unknown Exits Taken 4 | 1 1 . . . . . . . 1 1 . Scrap Searched 7 | . . . 1 . . . . 2 2 2 . Spaces Dug 10 | . 2 . . 4 . . . . 4 . . Terrain Destroyed 159 | . 5 33 20 84 . . 7 3 7 . . Melee 8 | . . . . 4 . . . . 4 . . Projectile 14 | . 5 4 1 4 . . . . . . . AOE 137 | . . 29 19 76 . . 7 3 3 . . Terrain Rammed . | . . . . . . . . . . . . Walls Destroyed . | . . . . . . . . . . . . Machines Disabled . | . . . . . . . . . . . . Actions | -11 -10 -9 -9 -8 -7 -7 -6 -6 -6 -6 -5 --------- Run | Yrd Mat Mat Min Mat Fac DSF Fac Low Low Zio Pro Total 10451 | 54 874 1429 211 2204 37 242 1042 1099 1156 1848 255 Wait 1849 | . 99 172 14 541 . 21 184 184 229 387 18 Move 7710 | 48 674 1067 168 1471 32 142 729 878 849 1419 233 Hop . | . . . . . . . . . . . . Pick Up 104 | . 10 32 . 22 1 10 11 2 12 4 . Fast Attach 77 | 6 8 10 . 13 . 3 18 2 5 12 . Attach 60 | . 2 7 4 17 2 3 7 5 7 5 1 Detach 35 | . . 3 . 8 . 1 7 3 1 10 2 Swap 83 | . 8 15 5 26 2 9 10 2 3 2 1 Drop 89 | . 6 30 . 15 . 8 22 3 1 4 . Fire 393 | . 67 83 20 85 . 25 54 20 34 5 . Melee 16 | . . . . 5 . . . . 11 . . Ram 2 | . . . . . . . . . 2 . . Kick 3 | . . . . 1 . . . . 2 . . Crush . | . . . . . . . . . . . . Escape Stasis 20 | . . . . . . 20 . . . . . Rewire 10 | . . 10 . . . . . . . . . Trap . | . . . . . . . . . . . . Miscellaneous . | . . . . . . . . . . . . Route ------- -11/Scrapyard -10/Materials (discovered 5 exits: *Mat x2 / [*Min x2] / [*Sub]) -9/Materials (discovered 3 exits: *Mat x2 / *Min) -9/Mines -8/Materials (discovered 3 exits: *Fac x3) -7/Factory -7/DSF -6/Factory -6/Lower Caves -6/Lower Caves -6/Zion -5/Proximity Caves (discovered 1 exit: Fac) History --------- Turn | Location | Event 43 | -11/Scrapyard | Discovered new exit (range 12) 67 | -11/Scrapyard | Entered Materials 319 | -10/Materials | Build established: Mutant 434 | -10/Materials | Discovered new exit (range 12) 615 | -10/Materials | Core integrity fell below 50% 619 | -10/Materials | Discovered new exit (range 9) 642 | -10/Materials | Lost 5 parts (1p1n3w) 760 | -10/Materials | Discovered new exit (range 12) 868 | -10/Materials | Discovered new exit (range 6) 913 | -10/Materials | Central database locked down 961 | -10/Materials | Discovered new exit (range 8) 1067 | -10/Materials | Derelicts attacked the area 1230 | -10/Materials | Entered another Materials area 1230 | -9/Materials | Evolved 2 slots: Utility x2 1536 | -9/Materials | Destroyed 7 combat bots 1631 | -9/Materials | Discovered new exit (range 9) 1993 | -9/Materials | Discovered new exit (range 16) 2217 | -9/Materials | Repaired Imp. Light Armor Plating 3148 | -9/Materials | Repaired Imp. Ion Engine 3220 | -9/Materials | Discovered new exit (range 15) 3307 | -9/Materials | Identified exit to Materials 3627 | -9/Materials | Repaired Shock Rifle 3692 | -9/Materials | Identified exit to Mines 3694 | -9/Materials | Entered Mines 3767 | -9/Mines | Learned Materials emergency access door positions 3776 | -9/Mines | Discovered exit to Materials (range 11) 3948 | -9/Mines | Assembled infested the area 3999 | -9/Mines | Core integrity fell below 50% 4027 | -9/Mines | Lost 8 parts (1p2n3u2w) 4077 | -9/Mines | Entered Materials 4077 | -8/Materials | Evolved 2 slots: Propulsion x1, Utility x1 4845 | -8/Materials | Discovered new exit (range 16) 4903 | -8/Materials | Repaired Shock Rifle 5378 | -8/Materials | Discovered new exit (range 15) 5451 | -8/Materials | Lost 7 parts (2p1n2u2w) 5462 | -8/Materials | Core integrity fell below 50% 5549 | -8/Materials | Central database locked down 6319 | -8/Materials | Discovered new exit (range 14) 6811 | -8/Materials | Build established: Hacker-Mutant 6928 | -8/Materials | Identified exit to Factory 6934 | -8/Materials | Entered Factory 6934 | -7/Factory | Evolved 2 slots: Utility x2 6980 | -7/Factory | Identified exit to DSF 6980 | -7/Factory | Entered DSF 7045 | -7/DSF | Additional patrols routed to DSF 7082 | -7/DSF | Lost 4 parts (1n2u1w) 7099 | -7/DSF | Found Prototype Device 7099 | -7/DSF | Identified Active Sensor Suite 7250 | -7/DSF | Discovered new exit (range 15) 7313 | -7/DSF | Identified exit to Factory 7314 | -7/DSF | Entered Factory 7314 | -6/Factory | Evolved 2 slots: Utility x2 7444 | -6/Factory | Build established: Hacker-Skirmisher 7857 | -6/Factory | Fabricated Tesla Rifle (x2) 8263 | -6/Factory | Discovered new exit (range 14) 8529 | -6/Factory | Lost 5 parts (1p3u1w) 8627 | -6/Factory | Cargo convoy interrupted 8782 | -6/Factory | Identified exit to Lower Caves 8862 | -6/Factory | Entered Lower Caves 8863 | -6/Lower Caves | Encountered a Warlord checkpoint 8961 | -6/Lower Caves | Learned location of 1 exit from Factory 9091 | -6/Lower Caves | Build established: Scavenger-Mutant 9540 | -6/Lower Caves | Learned Factory terminal intel 9681 | -6/Lower Caves | Build established: Hacker-Skirmisher 10017 | -6/Lower Caves | Discovered new exit (range 7) 10023 | -6/Lower Caves | Identified exit to Lower Caves 10030 | -6/Lower Caves | Entered another Lower Caves area 10422 | -6/Lower Caves | Learned Factory emergency access door positions 10479 | -6/Lower Caves | Ambushed by wild Derelicts 10827 | -6/Lower Caves | Build established: Scavenger-Skirmisher 10882 | -6/Lower Caves | Attracted the attention of an 0b10 checkpoint 10910 | -6/Lower Caves | Core integrity fell below 50% 10926 | -6/Lower Caves | System corruption reached 10% 10955 | -6/Lower Caves | Lost 10 parts (2p3n3u2w) 11128 | -6/Lower Caves | Discovered new exit (range 15) 11187 | -6/Lower Caves | Build established: Hacker-Mutant 11307 | -6/Lower Caves | Core integrity fell below 20% 11329 | -6/Lower Caves | Entered Zion 11336 | -6/Zion | Lost 5 parts (1p2n2u) 11381 | -6/Zion | Found Unknown Piercing Weapon 11384 | -6/Zion | Identified CR-A16's Pointy Stick 11423 | -6/Zion | Discovered new exit (range 15) 11478 | -6/Zion | Visited the Megawrench Repair Shop 11491 | -6/Zion | System corruption cleaned by Quarantine Array 11502 | -6/Zion | Learned location of Armory (-4) 11518 | -6/Zion | Given A8's code to call for help 11601 | -6/Zion | Learned location of 1 exit from Factory 11815 | -6/Zion | Received a visual enhancement algorithm 12018 | -6/Zion | Found Prototype Processor 12018 | -6/Zion | Identified Exp. Terrain Scan Processor 12024 | -6/Zion | Found Prototype Processor 12024 | -6/Zion | Identified Spectral Analyzer 12036 | -6/Zion | Found Prototype Processor 12036 | -6/Zion | Identified Exp. Target Analyzer 12038 | -6/Zion | Found Exp. Terrain Scan Processor 12244 | -6/Zion | Met Imprinter 12256 | -6/Zion | Imprinted 12258 | -6/Zion | Declared Zion's savior 12369 | -6/Zion | Build established: Derelict-Mutant 12636 | -6/Zion | Found Faulty Spectral Analyzer 12822 | -6/Zion | Entered Proximity Caves 12822 | -5/Proximity Caves | Accompanied by 4 allies 12845 | -5/Proximity Caves | Identified exit to Factory 12937 | -5/Proximity Caves | Attracted the attention of an 0b10 outpost 12989 | -5/Proximity Caves | Spotted B-75 Beast 13014 | -5/Proximity Caves | Destroyed by B-75 Beast with Magnetic Acceleration Cannon Last Messages --------------- GOAL=ESCAPE 12845_ Acquired derelict log, extracted data. Loading 1 Proximity Caves exit... 12937_ Y-72 Warden: "DETECTED UNIDENTIFIED DERELICT." 12938_ Slug penetrates I1-C2I(M). 12941_ Y-72 Warden: "REQUESTING BACKUP." 12941_ Y-72 Warden destroyed. 12966_ T6-H75(M) system corrupted by crushing effect. 12967_ T6-H75(M) system terminally corrupted. 12969_ T9-0B5(M) system corrupted by crushing effect. 12970_ T9-0B5(M) system terminally corrupted. 12971_ Carbon-fiber Leg fries itself beyond repair. 12989_ Backup Propulsion III destroyed. 13003_ Discarded 0b10 Decoder Chip [Looter]. 13006_ Critical hit (Meltdown: +330). 13014_ Backup Propulsion III destroyed. Map ----- +----------------------------------------------------+ | ?????????????????????????????????????????????????? | | ?????????????????????????????????????????????????? | | ?????????????????????????????????????????????????? | | ?????????????????????????????????????????????????? | | ?????????????????????????????????????????????????? | | ?????????????????????????????????????????????????? | | ?????????????????????????????????????????????????? | | ?????????????????????????????????????????????????? | | ?????????????????????????????????????????????????? | | ?????????????????????????????????????????????????? | | ?????????????????????????????????????????????????? | | ?????????????????????### ????????????????????????? | | ?????????????????? ?????? ????????????????? | | ?????????????????# ????? ??????????????? | | ?????????????????#$ ???? %???????????????? | | ????????????????## ???? ;????????????????? | | ???????????????## ???? #????????????????? | | ??????????????## #??? ##???????????????? | | ??????????????# #??# #???????????????? | | ??????????????# #?# #???????????????? | | ???????????????# BB ## #????????????????? | | ????????????????# BB #????????????????? | | ???????????????## #????????????????? | | ??????????????## #?????????????????? | | ??????????????# #??????????????????? | | ??????????????# @ #??????????????????? | | ?????????????## #####??????????????????? | | ?????????????#; %##??????????????????????? | | ?????????????#; ##;###???????????????????????? | | ??????????##### ######?????????????????????????? | | ?????????## #??????????????????????????????? | | ????????## ##?????????????????????????????? | | ????????# % #?????????????????????????????? | | ????????# #?????????????????????????????? | | ?? ?????## ### #?????????????????????????????? | | ?? ?????# ### ##?????????????????????????????? | | ?? ????# ##" ##??????????????????????????????? | | ?? ???## #####???????????????????????????????? | | ??# ??## #???????????????????????????????????? | | ?## ?## #???????????????????????????????????? | | ## ## ###?????????????????????????????????? | | ## ##????????????????????????????????? | | ## #????????????????????????????????? | | ## ## #????????????????????????????????? | | ##?# ##????????????????????????????????? | | #???##?????????????????????????????????? | | ### ##?????????????????????????????????????? | | ?## #?????????????????????????????????????? | | ?# ##?????????????????????????????????????? | | ## ###??????????????????????????????????????? | +----------------------------------------------------+ Best States ------------- Heat Dissipation 65 Energy Generation 18 Energy Capacity 300 Matter Stores 300 Matter Capacity 300 Sight Range 16 Robot Scan Range 20 Terrain Scan Range 16 Terrain Scan Density 10 Base Temperature (-) 150 Armor Coverage 375 Evasion (%) 55 Targeting Accuracy 16 Target Analysis 10 Offensive Hacking 12 Defensive Hacking 40 Authchip Count 4 Item Schematics ----------------- System Shield | -8/Materials | Scanalyzed Matter Compressor | -6/Zion | Archive Adv. Field Recycling Unit | -6/Zion | Archive Imp. Heavy Armor Plating | -6/Zion | Archive Wave Gun | -6/Zion | Archive Lgt. Fission Core | -6/Zion | Archive Mass Driver | -6/Zion | Archive Imp. System Restoration Module | -6/Zion | Archive Enh. Gauss Cannon | -6/Zion | Archive Fusion Compressor | -6/Zion | Archive Imp. Antigrav System | -6/Zion | Archive Adv. Target Analyzer | -6/Zion | Archive Hyp. Gauss Rifle | -6/Zion | Archive Imp. Shock Absorption System | -6/Zion | Archive Point Defense System | -6/Zion | Archive Thermic Laser | -6/Zion | Archive Riot Gun | -6/Zion | Free Flamer | -6/Zion | Free Slug Cannon | -6/Zion | Free Tactical Coordination Suite | -6/Zion | Free Robot Schematics ------------------ M-22 Extractor | -6/Zion | Archive R-10 Processor | -6/Zion | Archive S-27 Virus | -6/Zion | Archive Fabricated ------------ Tesla Rifle | x2 | -6/Factory | Preloaded Repaired ---------- Imp. Light Armor Plating | 25% | -9/Materials Imp. Ion Engine | 54% | -9/Materials Shock Rifle | 5% | -9/Materials Shock Rifle | 5% | -8/Materials Studied --------- Ion Cannon | -9/Materials | Hacked Imp. Aluminum Leg | -9/Materials | Hacked Alien Tech Used ----------------- None Achievements -------------- None Challenges ------------ None Game ------ Seed GyrokineticAuthchipLeg Manual? 0 Play Time 01:37:22 Cumulative 90.7 hours Start 2026.09.09 @ 12:10:53 End 2026.09.09 @ 13:49:31 Sessions 1 Manual Loads 0 Difficulty Rogue Special Mode None Game No. 111 Rogue 111 Adventurer 0 Explorer 0 Win Type - Total 0 Types 0/0/0/0/0/0/0/0/0/0 Lore% 42 Gallery% 45 Achievement% 36 Wizard Run 0 Options --------- Layout 1 ASCII 0 Keyboard 0 Movement Mouse Keybinds 0 Fullscreen 2 Font 24/Smallcaps Map View 50x35 Zoom Use 0% Tactical HUD 1 Map Filters NONE Filters NONE Steam 1 RUN: 984af3e4-fe95-453f-8688-830821027c7f